bitfinex/quotes_BTCUSD_20251009
["timestamp","ask_amount","ask_price","bid_price","bid_amount"]
[1760022011743,0.00193932,121460.0,121450.0,0.78571151]
[1760022011928,0.00193932,121460.0,121450.0,1.21324931]
[1760022012812,0.00193932,121460.0,121450.0,1.24963484]
[1760022013367,0.00193932,121460.0,121450.0,1.21320931]
[1760022013573,3.86522938,121500.0,121490.0,0.1646226]
[1760022013767,3.86573514,121500.0,121490.0,0.5502526]
[1760022014894,3.86773514,121500.0,121490.0,0.3056126]
[1760022015108,3.86973514,121500.0,121490.0,0.5502526]
[1760022015326,3.86773514,121500.0,121490.0,0.3056126]
[1760022015546,3.86773514,121500.0,121490.0,0.5502526]
[1760022015768,3.86773514,121500.0,121490.0,1.06087246]
[1760022016395,3.86573514,121500.0,121490.0,1.06087246]
[1760022016664,3.86573514,121500.0,121490.0,1.09385016]
[1760022017347,3.86573514,121500.0,121490.0,1.09481016]
[1760022017580,3.86573514,121500.0,121490.0,1.51480696]
[1760022017803,3.86573514,121500.0,121490.0,1.27024696]
[1760022018022,3.86573514,121500.0,121490.0,1.60044696]
[1760022018245,3.86573514,121500.0,121490.0,0.84270916]
[1760022018467,3.86573514,121500.0,121490.0,1.60044696]
[1760022018684,3.86573514,121500.0,121490.0,0.84270916]
[1760022018901,3.86573514,121500.0,121490.0,1.60040696]
[1760022019130,3.86573514,121500.0,121490.0,1.66106708]
[1760022019318,3.86779116,121500.0,121490.0,1.66106708]
[1760022019971,3.86779116,121500.0,121490.0,1.41654708]
[1760022020259,3.49390124,121500.0,121490.0,1.44669898]
[1760022020556,3.49390124,121500.0,121490.0,1.69121898]
[1760022020765,3.49390124,121500.0,121490.0,1.47141162]
[1760022021243,3.49390124,121500.0,121490.0,1.71589162]
[1760022021441,3.49390124,121500.0,121490.0,1.71489162]
[1760022021570,3.49390124,121500.0,121490.0,1.71689162]
[1760022021784,3.08112472,121500.0,121490.0,2.14438942]
[1760022021995,2.99306818,121500.0,121490.0,2.24438941]
[1760022022201,2.68393791,121500.0,121490.0,2.24438941]
[1760022022419,2.57938881,121500.0,121490.0,2.24438941]
[1760022022626,2.38471388,121500.0,121490.0,2.24438941]
[1760022022832,2.19801385,121500.0,121490.0,2.24438941]
[1760022023258,1.71912316,121500.0,121490.0,2.2693894]
[1760022023478,1.57308565,121500.0,121490.0,2.2693494]
[1760022023698,1.48935815,121500.0,121490.0,1.9393094]
[1760022023919,1.48935815,121500.0,121490.0,2.6117894]
[1760022024175,1.08843827,121500.0,121490.0,2.6117894]
[1760022024413,0.90024217,121500.0,121490.0,2.6117894]
[1760022024645,0.90024217,121500.0,121490.0,1.6710738]
[1760022024854,0.90024217,121500.0,121490.0,2.51170941]
[1760022025070,0.90024217,121500.0,121490.0,2.6117094]
[1760022025071,0.52375099,121500.0,121490.0,2.6117094]
[1760022025303,0.36742314,121500.0,121490.0,2.6117094]
[1760022025529,0.16285148,121500.0,121490.0,2.6117094]
[1760022025743,0.06505207,121500.0,121490.0,2.6117094]
[1760022025984,0.0002,121510.0,121500.0,0.63476094]
[1760022026194,0.00028328,121510.0,121500.0,1.66088233]
[1760022026414,0.0002,121520.0,121510.0,0.29474739]
[1760022026628,1e-08,121520.0,121510.0,1.43655197]
[1760022026846,1e-08,121520.0,121510.0,1.72543197]
[1760022027085,0.0002,121550.0,121540.0,0.29470676]
[1760022027319,0.0002,121560.0,121550.0,0.50454134]
[1760022027530,0.00767871,121560.0,121550.0,1.32590593]
[1760022027755,0.00767871,121560.0,121550.0,1.35060754]
[1760022027959,0.00767871,121560.0,121550.0,1.45060753]
[1760022028172,0.00767871,121560.0,121550.0,1.81063943]
[1760022028394,0.00767871,121560.0,121550.0,1.89063623]
[1760022028622,0.00767871,121560.0,121550.0,1.56075623]
[1760022028840,0.00767871,121560.0,121550.0,1.89063623]
[1760022029062,0.0002,121560.0,121550.0,1.56175623]
[1760022029296,0.00767933,121560.0,121550.0,1.64635623]
[1760022029494,0.00767933,121560.0,121550.0,1.89059623]
[1760022029723,0.00767933,121560.0,121550.0,1.89159623]
[1760022029924,0.00767933,121560.0,121550.0,1.95234979]
[1760022030138,0.0002,121560.0,121550.0,1.97634978]
[1760022030572,1e-08,121560.0,121550.0,1.73310978]
[1760022030802,1e-08,121560.0,121550.0,1.97730978]
[1760022031465,1e-08,121560.0,121550.0,1.73310978]
[1760022031678,1e-08,121560.0,121550.0,1.97726978]
[1760022032412,1.234184,121580.0,121570.0,0.89191869]
[1760022032667,1.234184,121580.0,121570.0,1.44018755]
[1760022033110,1.234184,121580.0,121570.0,1.19602755]
[1760022033324,1.234184,121580.0,121570.0,1.76802756]
[1760022033542,1.234184,121580.0,121570.0,1.09602756]
[1760022033776,1.234184,121580.0,121570.0,1.89302754]
[1760022034209,1.22641865,121580.0,121570.0,1.89302754]
[1760022034437,1.22641865,121580.0,121570.0,1.64890754]
[1760022034656,0.28553925,121580.0,121570.0,2.15399074]
[1760022034881,0.0002,121600.0,121580.0,0.65965262]
[1760022035105,0.0002,121600.0,121590.0,0.62948719]
[1760022035323,0.0002,121600.0,121590.0,1.75861887]
[1760022035542,0.0002,121600.0,121590.0,1.75857887]
[1760022035763,0.0002,121600.0,121590.0,1.51453887]
[1760022035972,0.0002,121600.0,121590.0,1.94233887]
[1760022036210,0.0002,121600.0,121590.0,2.06137889]
[1760022036211,0.00770093,121600.0,121590.0,2.06137889]
[1760022036461,0.00770093,121600.0,121590.0,1.86673978]
[1760022036670,0.00770093,121600.0,121590.0,0.32039747]
[1760022036898,0.00770093,121600.0,121590.0,0.40595747]
[1760022037143,0.00770093,121600.0,121590.0,1.16769721]
[1760022037383,0.00770093,121600.0,121590.0,1.41269721]
[1760022037594,0.00770093,121600.0,121590.0,1.00421]
[1760022037816,0.00770093,121600.0,121590.0,1.16769721]
[1760022038025,0.00975441,121600.0,121590.0,0.40595747]
[1760022038244,0.00475441,121600.0,121590.0,0.32039747]
[1760022038487,0.00475441,121600.0,121590.0,0.37238228]
[1760022039159,0.00475441,121600.0,121590.0,0.61634228]
[1760022039381,0.01976365,121600.0,121590.0,0.53082228]
[1760022039593,0.00475441,121600.0,121590.0,0.28686228]
[1760022039814,0.00475441,121600.0,121590.0,0.45134949]
[1760022040037,0.00475441,121600.0,121590.0,0.53078228]
[1760022040278,0.01976365,121600.0,121590.0,0.28686228]
[1760022040505,0.18423733,121600.0,121590.0,0.07684]
[1760022040723,0.02076365,121600.0,121590.0,0.32076]
[1760022040931,0.18523733,121600.0,121590.0,0.32076]
[1760022041162,0.02076365,121600.0,121590.0,0.15812]
[1760022041385,0.02076365,121600.0,121590.0,0.40204]
[1760022042107,0.05405934,121600.0,121590.0,0.40204]
[1760022042323,0.02076365,121600.0,121590.0,0.40204]
[1760022042541,0.02076365,121600.0,121590.0,0.64960927]
[1760022042761,0.02035245,121600.0,121590.0,0.64960927]
[1760022042980,0.00534321,121600.0,121590.0,1.2468618]
[1760022043201,0.00534321,121600.0,121590.0,0.40572927]
[1760022043419,0.00534321,121600.0,121590.0,0.15812]
[1760022043420,0.02035245,121600.0,121590.0,0.15812]
[1760022043647,0.26482293,121600.0,121590.0,0.15812]
[1760022043909,0.16448721,121590.0,121580.0,0.03228]
[1760022044112,0.16448721,121590.0,121570.0,0.03228]
[1760022044113,0.17949645,121590.0,121570.0,0.03228]
[1760022044333,0.01500924,121590.0,121580.0,0.09658]
[1760022044564,0.01500924,121590.0,121580.0,0.17786]
[1760022045269,0.01500924,121590.0,121580.0,0.58620074]
[1760022046110,0.01500924,121590.0,121580.0,0.4254828]
[1760022046542,0.01500924,121590.0,121580.0,1.35205533]
[1760022046758,1.0002,121610.0,121600.0,0.16447368]
[1760022046968,1.0002,121610.0,121600.0,0.67330574]
[1760022047182,1.0002,121610.0,121600.0,1.27055827]
[1760022047595,1.0002,121610.0,121600.0,1.02675827]
[1760022047823,1.0002,121610.0,121600.0,1.39691017]
[1760022048043,1.0002,121610.0,121600.0,1.64071017]
[1760022049584,1.0002,121610.0,121600.0,1.64171017]
[1760022049797,1.0002,121610.0,121600.0,1.39791017]
[1760022050009,1.00276664,121610.0,121600.0,1.72719017]
[1760022050652,1.00276664,121610.0,121600.0,1.82719016]
[1760022050880,0.99276664,121610.0,121600.0,1.49791016]
[1760022051105,0.99276664,121610.0,121600.0,1.82715016]
[1760022052030,0.99276664,121610.0,121600.0,1.58343016]
[1760022052248,0.99276664,121610.0,121600.0,1.85215015]
[1760022052470,0.99276664,121610.0,121600.0,1.75215016]
[1760022052708,0.99276664,121610.0,121600.0,1.85215015]
[1760022053165,0.61807995,121610.0,121600.0,1.60843015]
[1760022053384,0.50184141,121610.0,121600.0,1.85211015]
[1760022053832,0.11337617,121610.0,121600.0,1.60843015]
[1760022054062,0.11337617,121610.0,121600.0,1.85207015]
[1760022054303,1e-08,121610.0,121600.0,1.85207015]
[1760022054536,1e-08,121610.0,121600.0,1.60843015]
[1760022054792,1e-08,121610.0,121600.0,2.19419015]
[1760022055040,1e-08,121610.0,121600.0,0.90065763]
[1760022055264,1e-08,121610.0,121600.0,2.19419015]
[1760022055710,1e-08,121610.0,121600.0,2.09419016]
[1760022055930,1e-08,121610.0,121600.0,1.52291015]
[1760022056174,1e-08,121610.0,121600.0,1.39791017]
[1760022056403,1e-08,121610.0,121600.0,0.75962574]
[1760022056657,1e-08,121610.0,121600.0,1.36775827]
[1760022056861,1e-08,121610.0,121600.0,1.11657048]
[1760022057079,1e-08,121610.0,121600.0,0.75962574]
[1760022057728,1e-08,121610.0,121600.0,0.75862574]
[1760022058386,1e-08,121610.0,121600.0,0.42950574]
[1760022058614,1e-08,121610.0,121600.0,0.51502574]
[1760022058836,1e-08,121610.0,121600.0,0.75858574]
[1760022059405,1e-08,121610.0,121600.0,0.42950574]
[1760022059566,1e-08,121610.0,121600.0,0.75858574]
[1760022059795,1e-08,121610.0,121600.0,0.75854574]
[1760022060000,1e-08,121610.0,121600.0,1.11227827]
[1760022060209,1e-08,121610.0,121600.0,1.35579827]
[1760022060418,1e-08,121610.0,121600.0,1.11227827]
[1760022060621,1e-08,121610.0,121600.0,1.35579827]
[1760022060831,1e-08,121610.0,121600.0,1.11227827]
[1760022061032,0.00100001,121610.0,121600.0,1.48243017]
[1760022061246,0.00100001,121610.0,121600.0,1.72595017]
[1760022061608,1e-08,121610.0,121600.0,1.72595017]
[1760022061814,1e-08,121610.0,121600.0,1.72695017]
[1760022062467,1e-08,121610.0,121600.0,1.12969764]
[1760022062671,1e-08,121610.0,121600.0,1.72691017]
[1760022063103,1e-08,121610.0,121600.0,1.48343017]
[1760022063318,1e-08,121610.0,121600.0,1.72691017]
[1760022063754,1e-08,121610.0,121600.0,1.82591016]
[1760022064196,1e-08,121610.0,121600.0,1.82691016]
[1760022064437,1e-08,121610.0,121600.0,1.82687016]
[1760022064644,1e-08,121610.0,121600.0,1.82587016]
[1760022064783,1e-08,121610.0,121600.0,1.58243016]
[1760022064988,1e-08,121610.0,121600.0,1.82687016]
[1760022065226,1e-08,121610.0,121600.0,1.85187015]
[1760022065429,1e-08,121610.0,121600.0,1.25361762]
[1760022065657,1e-08,121610.0,121600.0,1.85087015]
[1760022065861,1e-08,121620.0,121610.0,0.65961203]
[1760022066070,1e-08,121620.0,121610.0,1.46735662]
[1760022066209,1e-08,121630.0,121620.0,0.63459852]
[1760022066425,0.01414846,121640.0,121630.0,0.16443311]
[1760022066629,0.01414846,121640.0,121630.0,0.42946517]
[1760022066850,0.01414846,121640.0,121630.0,1.2701177]
[1760022067053,0.01465402,121640.0,121630.0,1.3556377]
[1760022067294,0.01465402,121640.0,121630.0,1.19815829]
[1760022067547,0.01465402,121640.0,121630.0,0.51538576]
[1760022067771,0.01465402,121640.0,121630.0,0.35055206]
[1760022068017,0.01465402,121640.0,121630.0,0.75838517]
[1760022068224,0.01565402,121640.0,121630.0,1.3556377]
[1760022068395,0.01565402,121640.0,121630.0,1.3555977]
[1760022068806,0.01565402,121640.0,121630.0,0.81953965]
[1760022069010,0.01565402,121640.0,121630.0,1.41679218]
[1760022069413,0.01565402,121640.0,121630.0,1.17339218]
[1760022069632,0.01565402,121640.0,121630.0,1.20677977]
[1760022069828,0.01565402,121640.0,121630.0,1.45013977]
[1760022070056,0.01465402,121640.0,121630.0,1.45013977]
[1760022070403,0.01565402,121640.0,121630.0,1.45013977]
[1760022070710,0.01565402,121640.0,121630.0,1.57693167]
[1760022070921,0.01465402,121640.0,121630.0,1.82025167]
[1760022071144,1.00757133,121680.0,121670.0,0.16437905]
[1760022071370,1.00772293,121680.0,121670.0,0.59911905]
[1760022072666,1.00772293,121680.0,121670.0,0.59907905]
[1760022073051,1.01131344,121680.0,121670.0,1.03617364]
[1760022073288,1.01131344,121680.0,121670.0,1.27945364]
[1760022073718,1.01231344,121680.0,121670.0,0.76768111]
[1760022074192,1.01131344,121680.0,121670.0,0.76768111]
[1760022074668,1.01231344,121680.0,121670.0,1.36493364]
[1760022074913,1.01231344,121680.0,121670.0,0.76768111]
[1760022075362,1.01231344,121680.0,121670.0,1.36493364]
[1760022075614,1.01231344,121680.0,121670.0,0.52440111]
[1760022075821,1.01231344,121680.0,121670.0,0.68216111]
[1760022076041,1.00474211,121680.0,121670.0,0.52440111]
[1760022076250,1.00474211,121680.0,121670.0,0.76764111]
[1760022076451,1.01231731,121680.0,121670.0,0.76764111]
[1760022076583,1.00474211,121680.0,121670.0,0.76760111]
[1760022077061,1.00474211,121680.0,121670.0,1.42684152]
[1760022077742,1.00474211,121680.0,121670.0,1.55379342]
[1760022078158,1.00474211,121680.0,121670.0,1.46831342]
[1760022078389,1.00474211,121680.0,121670.0,0.87106089]
[1760022078607,1.00474211,121680.0,121670.0,1.79695342]
[1760022078773,1.00474211,121680.0,121670.0,1.55379342]
[1760022078993,1.00474211,121680.0,121670.0,1.79695342]
[1760022079369,1.00474211,121680.0,121670.0,1.46831342]
[1760022079797,1.00474211,121680.0,121670.0,1.79695342]
[1760022080214,1.00474211,121680.0,121670.0,1.46831342]
[1760022080414,1.00474211,121680.0,121670.0,1.55379342]
[1760022080625,1.00474211,121680.0,121670.0,1.79691342]
[1760022080829,1.01232138,121680.0,121670.0,1.46831342]
[1760022081045,1.01232138,121680.0,121670.0,1.79691342]
[1760022081261,1.00474211,121680.0,121670.0,1.79691342]
[1760022081479,1.00474211,121680.0,121670.0,1.55379342]
[1760022081702,1.00474211,121680.0,121670.0,1.82158854]
[1760022081916,1.00474211,121680.0,121670.0,1.57846854]
[1760022082126,1.00474211,121680.0,121670.0,1.82154854]
[1760022082751,0.40119794,121680.0,121670.0,1.94654852]
[1760022083039,0.34923816,121680.0,121670.0,1.94654852]
[1760022083268,0.34923816,121680.0,121670.0,2.28846852]
[1760022083487,0.34923816,121680.0,121670.0,2.04538852]
[1760022083711,0.34823816,121680.0,121670.0,1.61798852]
[1760022083916,0.34823816,121680.0,121670.0,2.28842852]
[1760022084131,0.34823816,121680.0,121670.0,2.28942852]
[1760022084592,0.34823816,121680.0,121670.0,2.04638852]
[1760022084816,0.34823816,121680.0,121670.0,2.28942852]
[1760022085479,0.34823816,121680.0,121670.0,2.04538852]
[1760022085700,0.34823816,121680.0,121670.0,2.04638852]
[1760022085908,0.34823816,121680.0,121670.0,2.28938852]
[1760022086151,0.34823816,121680.0,121670.0,2.28838852]
[1760022086378,0.0005,121690.0,121680.0,0.50436554]
[1760022086595,0.0005,121690.0,121680.0,1.55948013]
[1760022086812,0.0005,121690.0,121680.0,1.61916013]
[1760022087019,0.0004,121740.0,121730.0,0.16429803]
[1760022087246,0.00055148,121740.0,121730.0,1.19701262]
[1760022087493,0.00055148,121740.0,121730.0,1.15168452]
[1760022087739,0.00055148,121740.0,121730.0,1.40845209]
[1760022087972,0.00055148,121740.0,121730.0,1.442049]
[1760022088184,0.00055148,121740.0,121730.0,0.57168457]
[1760022088421,0.00055148,121740.0,121730.0,0.81464457]
[1760022088642,0.00055148,121740.0,121730.0,0.32194654]
[1760022088872,0.00055148,121740.0,121730.0,0.05968]
[1760022089114,0.00055148,121740.0,121730.0,0.4508098]
[1760022089331,0.16932602,121740.0,121730.0,0.10122]
[1760022089565,0.20606659,121740.0,121730.0,0.24292]
[1760022090084,0.00055148,121740.0,121730.0,0.43434]
[1760022090314,0.00055148,121740.0,121730.0,0.51746206]
[1760022090548,0.00255148,121740.0,121730.0,0.27454206]
[1760022090767,0.00255148,121740.0,121730.0,0.99205289]
[1760022091005,0.00255148,121740.0,121730.0,0.42201331]
[1760022091221,0.00255148,121740.0,121730.0,0.50087134]
[1760022091446,0.00704148,121740.0,121730.0,0.57469331]
[1760022091685,0.00055148,121740.0,121730.0,0.57469331]
[1760022091901,0.00055148,121740.0,121730.0,0.82919134]
[1760022092141,0.00255148,121740.0,121730.0,0.82919134]
[1760022092605,0.00255148,121740.0,121730.0,0.66489331]
[1760022092816,0.00362665,121740.0,121730.0,0.42201331]
[1760022093060,0.00362665,121740.0,121730.0,0.82919134]
[1760022093285,0.00462665,121740.0,121730.0,0.82919134]
[1760022093757,0.00362665,121740.0,121730.0,0.82919134]
[1760022094003,0.00362665,121740.0,121730.0,0.58631134]
[1760022094226,0.00362665,121740.0,121730.0,0.82915134]
[1760022094673,0.00362665,121740.0,121730.0,1.01129786]
[1760022095094,0.00362665,121740.0,121730.0,1.59413786]
[1760022095760,0.00562665,121740.0,121730.0,1.62428976]
[1760022095984,0.00562665,121740.0,121730.0,1.19930324]
[1760022096222,0.00362665,121740.0,121730.0,1.19926324]
[1760022096414,0.00462665,121740.0,121730.0,1.62424976]
[1760022096627,0.00462665,121740.0,121730.0,1.19926324]
[1760022096856,0.00462665,121740.0,121730.0,0.92631134]
[1760022097060,0.00462665,121740.0,121730.0,0.84291891]
[1760022097298,0.00462665,121740.0,121730.0,0.43582088]
[1760022097574,0.01380757,121750.0,121740.0,0.16428454]
[1760022097808,0.01380757,121750.0,121740.0,1.04689312]
[1760022098040,0.01380757,121750.0,121740.0,0.4388266]
[1760022098264,0.01431993,121750.0,121740.0,0.7117385]
[1760022098482,0.01431993,121750.0,121740.0,1.13672502]
[1760022098943,0.01631993,121750.0,121740.0,1.13672502]
[1760022099181,0.02390429,121750.0,121740.0,0.7117385]
[1760022099395,0.02190429,121750.0,121740.0,0.89396502]
[1760022099606,0.02190429,121750.0,121740.0,1.22216502]
[1760022100247,0.02190429,121750.0,121740.0,0.89396502]
[1760022100460,0.02290429,121750.0,121740.0,0.89396502]
[1760022100700,0.02290429,121750.0,121740.0,1.22212502]
[1760022100883,0.02290429,121750.0,121740.0,0.7971385]
[1760022101089,0.02290429,121750.0,121740.0,0.97940502]
[1760022101342,0.02290429,121750.0,121740.0,1.22212502]
[1760022101759,0.01531993,121750.0,121740.0,0.97940502]
[1760022101982,0.01431993,121750.0,121740.0,1.22212502]
[1760022102212,0.01431993,121750.0,121740.0,0.97940502]
[1760022102449,0.01431993,121750.0,121740.0,1.22212502]
[1760022102674,0.01423779,121750.0,121740.0,1.22212502]
[1760022103591,0.01423779,121750.0,121740.0,1.56212502]
[1760022103805,0.01423779,121750.0,121740.0,1.68395153]
[1760022104038,0.01423779,121750.0,121740.0,2.35383153]
[1760022104279,0.0002,121760.0,121750.0,0.50427104]
[1760022104504,0.0002,121760.0,121750.0,1.13926962]
[1760022104718,0.0002,121760.0,121750.0,1.46950152]
[1760022105372,0.0012,121760.0,121750.0,1.46950152]
[1760022105798,0.0012,121760.0,121750.0,1.55490152]
[1760022106069,0.0012,121760.0,121750.0,1.97988804]
[1760022106275,0.0012,121760.0,121750.0,1.73724804]
[1760022106477,0.0012,121760.0,121750.0,0.887275]
[1760022107007,0.0012,121760.0,121750.0,1.129875]
[1760022107146,0.0012,121760.0,121750.0,1.31226152]
[1760022107342,0.0012,121760.0,121750.0,1.55486152]
[1760022107887,0.0012,121760.0,121750.0,0.801875]
[1760022108077,0.0012,121760.0,121750.0,1.31226152]
[1760022108337,0.0012,121760.0,121750.0,0.789875]
[1760022108546,0.0012,121760.0,121750.0,1.23952278]
[1760022108754,0.0012,121760.0,121750.0,0.72913626]
[1760022108927,0.0012,121760.0,121750.0,0.26745206]
[1760022109209,0.0012,121760.0,121750.0,0.7597231]
[1760022109381,0.0012,121760.0,121750.0,0.26745206]
[1760022109537,0.0012,121760.0,121750.0,0.59541206]
[1760022109738,1.0012,121760.0,121750.0,0.26745206]
[1760022109944,1.66290902,121760.0,121750.0,0.04292]
[1760022110151,0.16427104,121750.0,121740.0,0.12694]
[1760022110348,0.16427104,121750.0,121740.0,0.18210206]
[1760022110551,0.16427104,121750.0,121740.0,0.51006206]
[1760022111004,1.2312925,121760.0,121740.0,0.26750206]
[1760022111208,1.17601984,121760.0,121740.0,0.59357206]
[1760022111379,1.17601984,121760.0,121750.0,0.0434]
[1760022111578,1.19369984,121760.0,121750.0,0.10084]
[1760022111794,0.16427104,121750.0,121740.0,0.21006206]
[1760022111996,0.16427104,121750.0,121730.0,0.12960841]
[1760022111997,0.16428454,121740.0,121730.0,0.10494131]
[1760022112218,0.16428454,121740.0,121730.0,0.42831006]
[1760022112443,0.16428454,121740.0,121730.0,0.34291006]
[1760022112659,0.60695106,121740.0,121730.0,0.10035006]
[1760022112870,0.18196454,121740.0,121730.0,0.00137006]
[1760022113086,0.69799786,121740.0,121730.0,0.00137006]
[1760022113216,0.68694786,121740.0,121730.0,0.24389006]
[1760022113431,0.26196134,121740.0,121730.0,0.24389006]
[1760022113877,0.51136444,121740.0,121730.0,0.24389006]
[1760022114087,0.67564898,121740.0,121730.0,0.24389006]
[1760022114705,0.67764898,121740.0,121730.0,0.24389006]
[1760022115362,0.17266566,121740.0,121730.0,0.30133006]
[1760022115600,0.16728454,121740.0,121730.0,0.34473006]
[1760022115820,0.59227106,121740.0,121730.0,0.00137006]
[1760022116046,0.59227106,121740.0,121730.0,0.24389006]
[1760022116246,0.59027106,121740.0,121730.0,0.24389006]
[1760022116473,0.58927106,121740.0,121730.0,0.24389006]
[1760022116678,0.16428454,121740.0,121730.0,0.34473006]
[1760022116877,0.002,121740.0,121730.0,0.42824006]
[1760022117087,0.002,121740.0,121730.0,0.26884212]
[1760022117372,0.50427184,121750.0,121730.0,0.51136212]
[1760022117545,0.16828454,121740.0,121730.0,0.08449212]
[1760022117768,0.59327106,121740.0,121730.0,0.00137006]
[1760022117892,0.59327106,121740.0,121730.0,0.24389006]
[1760022118104,0.59327106,121740.0,121730.0,0.00137006]
[1760022118337,0.59327106,121740.0,121730.0,0.24389006]
[1760022118535,0.67326786,121740.0,121730.0,0.00137006]
[1760022118707,0.67126786,121740.0,121730.0,0.00137006]
[1760022118946,0.66926786,121740.0,121730.0,0.24389006]
[1760022119186,0.67326786,121740.0,121730.0,0.00137006]
[1760022119369,1.01326786,121740.0,121730.0,0.00137006]
[1760022119571,1.01126786,121740.0,121730.0,0.00137006]
[1760022119941,1.01326786,121740.0,121730.0,0.00137006]
[1760022120420,0.58828134,121740.0,121730.0,0.00137006]
[1760022120621,1.02645783,121740.0,121730.0,0.00137006]
[1760022120827,1.02845783,121740.0,121730.0,0.00137006]
[1760022121480,1.27093783,121740.0,121730.0,0.00137006]
[1760022121653,1.11157989,121740.0,121730.0,0.00137006]
[1760022121913,1.35405989,121740.0,121730.0,0.00137006]
[1760022122783,1.11157989,121740.0,121730.0,0.00137006]
[1760022123004,1.35405989,121740.0,121730.0,0.00137006]
[1760022123450,0.68659337,121740.0,121730.0,0.00137006]
[1760022123664,1.1115876,121740.0,121730.0,0.00137006]
[1760022123896,1.3540676,121740.0,121730.0,0.00137006]
[1760022124110,1.1115876,121740.0,121730.0,0.00137006]
[1760022124352,1.3540676,121740.0,121730.0,0.00137006]
[1760022124563,1.1115876,121740.0,121730.0,0.00137006]
[1760022125184,1.3540676,121740.0,121730.0,0.00137006]
[1760022125814,1.1115876,121740.0,121730.0,0.00137006]
[1760022126023,0.9138834,121740.0,121730.0,0.00137006]
[1760022126235,1.11158906,121740.0,121730.0,0.00137006]
[1760022126439,1.09638992,121740.0,121730.0,0.00137006]
[1760022126745,1.35402876,121740.0,121730.0,0.00137006]
[1760022127192,1.11158876,121740.0,121730.0,0.00137006]
[1760022127415,1.35402876,121740.0,121730.0,0.00137006]
[1760022127587,1.31504164,121740.0,121730.0,0.00137006]
[1760022127831,1.55748164,121740.0,121730.0,0.00137006]
[1760022128159,0.16435204,121690.0,121680.0,0.11423503]
[1760022128387,0.62220762,121690.0,121680.0,0.06634651]
[1760022128602,0.62220762,121690.0,121680.0,0.06890996]
[1760022129261,0.62220762,121690.0,121680.0,0.00271493]
[1760022129472,0.86464762,121690.0,121680.0,0.00271493]
[1760022129683,0.8798401,121690.0,121680.0,0.00271493]
[1760022129879,0.6374001,121690.0,121680.0,0.00271493]
[1760022130083,0.21441358,121690.0,121680.0,0.00371493]
[1760022130300,0.42398452,121690.0,121680.0,0.00371493]
[1760022130516,0.84697104,121690.0,121680.0,0.00271493]
[1760022130756,0.42398452,121690.0,121680.0,0.00271493]
[1760022130964,0.87795114,121690.0,121680.0,0.00271493]
[1760022131566,0.45296462,121690.0,121680.0,0.00271493]
[1760022131783,0.95022546,121690.0,121680.0,0.00271493]
[1760022132044,0.70778546,121690.0,121680.0,0.00271493]
[1760022132301,0.95022546,121690.0,121680.0,0.00271493]
[1760022132518,0.70778546,121690.0,121680.0,0.00271493]
[1760022132929,0.95022546,121690.0,121680.0,0.00271493]
[1760022133374,0.93503298,121690.0,121680.0,0.00271493]
[1760022133667,0.95021387,121690.0,121680.0,0.00271493]
[1760022134497,0.93503298,121690.0,121680.0,0.00271493]
[1760022134657,0.69259298,121690.0,121680.0,0.00271493]
[1760022135085,0.93503298,121690.0,121680.0,0.00271493]
[1760022135753,0.69259298,121690.0,121680.0,0.00271493]
[1760022135961,0.93503298,121690.0,121680.0,0.00271493]
[1760022136610,0.95022543,121690.0,121680.0,0.00271493]
[1760022136810,0.70778543,121690.0,121680.0,0.00271493]
[1760022137037,0.93499298,121690.0,121680.0,0.00271493]
[1760022137450,0.95018998,121690.0,121680.0,0.00271493]
[1760022138237,0.52520346,121690.0,121680.0,0.00271493]
[1760022138494,0.95018998,121690.0,121680.0,0.00271493]
[1760022138700,0.93499298,121690.0,121680.0,0.00271493]
[1760022139129,0.004,121690.0,121680.0,0.05833493]
[1760022139355,0.26160125,121690.0,121680.0,0.10326493]
[1760022139624,0.01920125,121690.0,121680.0,0.43392253]
[1760022139842,0.01920125,121690.0,121680.0,0.92510408]
[1760022140062,0.01920125,121690.0,121680.0,1.22988743]
[1760022140286,0.004,121690.0,121680.0,0.98748743]
[1760022140472,0.002,121690.0,121680.0,1.34004415]
[1760022140674,0.002,121690.0,121680.0,1.01216415]
[1760022140932,0.003,121690.0,121680.0,1.34004415]
[1760022141153,0.001,121690.0,121680.0,1.46779605]
[1760022141375,0.001,121690.0,121680.0,1.81019604]
[1760022141596,0.002,121690.0,121680.0,1.23349449]
[1760022141821,0.001,121690.0,121680.0,1.50160101]
[1760022142047,0.001,121690.0,121680.0,1.74396101]
[1760022142266,0.17249939,121740.0,121710.0,0.16432344]
[1760022142483,0.23998376,121740.0,121730.0,0.05562]
[1760022142699,0.18771745,121740.0,121730.0,0.10055]
[1760022143579,0.18771745,121740.0,121730.0,0.04493]
[1760022144914,0.18771745,121740.0,121730.0,0.10055]
[1760022145099,0.18771745,121740.0,121720.0,0.12805206]
[1760022145100,0.16429803,121730.0,121720.0,0.12805206]
[1760022145347,0.17951609,121730.0,121720.0,0.42614354]
[1760022145576,0.17951609,121730.0,121720.0,0.50931354]
[1760022146009,0.17951609,121730.0,121720.0,0.10070148]
[1760022146220,0.25941629,121730.0,121720.0,0.00015148]
[1760022146443,0.25941629,121730.0,121720.0,0.10070148]
[1760022146901,0.18151609,121730.0,121720.0,0.10070148]
[1760022147111,0.18151609,121730.0,121720.0,0.04508148]
[1760022147377,0.18151609,121730.0,121720.0,0.10070148]
[1760022147577,0.18351609,121730.0,121720.0,0.10070148]
[1760022147807,0.18351609,121730.0,121720.0,0.10121401]
[1760022148020,0.26161629,121730.0,121720.0,0.10121401]
[1760022148244,0.18351609,121730.0,121720.0,0.10121401]
[1760022148466,0.18351609,121730.0,121720.0,0.00066401]
[1760022148676,0.95610759,121730.0,121720.0,0.00066401]
[1760022149092,1.03922965,121730.0,121720.0,0.00066401]
[1760022149308,1.28150965,121730.0,121720.0,0.00066401]
[1760022149501,1.36150645,121730.0,121720.0,0.00066401]
[1760022150040,1.36145735,121730.0,121720.0,0.00066401]
[1760022150246,1.53246163,121730.0,121720.0,0.00066401]
[1760022152259,1.29022163,121730.0,121720.0,0.00066401]
[1760022152686,1.53246163,121730.0,121720.0,0.00066401]
[1760022153749,0.93647083,121730.0,121720.0,0.00066401]
[1760022153961,1.53246163,121730.0,121720.0,0.00066401]
[1760022157120,1.53242163,121730.0,121720.0,0.00066401]
[1760022157359,1.61786163,121730.0,121720.0,0.00066401]
[1760022158939,1.37566163,121730.0,121720.0,0.00066401]
[1760022159147,1.61782163,121730.0,121720.0,0.00066401]
[1760022160236,1.37566163,121730.0,121720.0,0.00066401]
[1760022160446,1.61782163,121730.0,121720.0,0.00066401]
[1760022160881,1.61782163,121730.0,121720.0,1e-08]
[1760022160882,1.64797353,121730.0,121720.0,1e-08]
[1760022161358,1.67297352,121730.0,121720.0,1e-08]
[1760022161570,1.43081352,121730.0,121720.0,1e-08]
[1760022161841,2.18585651,121730.0,121720.0,1e-08]
[1760022162063,1.88383051,121730.0,121720.0,1e-08]